[Event "*** Titled Tuesday Blitz"]
[Site "Chess.com"]
[Date "2020.12.29"]
[Round "5"]
[White "MillyNeuf"]
[Black "RamyresCoelho"]
[Result "1-0"]
[WhiteElo "2331"]
[BlackElo "2094"]
[TimeControl "180+1"]
[EndTime "10:53:27 PST"]
[Termination "MillyNeuf won by resignation"]

1. e4 {[%clk 0:03:00.9]} 1... c5 {[%clk 0:02:59.9]} 2. Nc3 {[%clk 0:03:00.6]}
2... Nc6 {[%clk 0:02:59.7]} 3. g3 {[%clk 0:03:01]} 3... Nf6 {[%clk 0:02:58.7]}
4. Bg2 {[%clk 0:03:00.7]} 4... d6 {[%clk 0:02:59.3]} 5. d3 {[%clk 0:02:59.8]}
5... Bd7 {[%clk 0:02:59.8]} 6. f4 {[%clk 0:03:00]} 6... Qc8 {[%clk 0:03:00.1]}
7. Nf3 {[%clk 0:02:59.6]} 7... g6 {[%clk 0:02:59.1]} 8. O-O {[%clk 0:02:59.5]}
8... Bg7 {[%clk 0:02:59.3]} 9. Ne2 {[%clk 0:02:50.6]} 9... Bh3 {[%clk
0:02:57.5]} 10. c3 {[%clk 0:02:49.2]} 10... Bxg2 {[%clk 0:02:56.7]} 11. Kxg2
{[%clk 0:02:50.1]} 11... O-O {[%clk 0:02:54.6]} 12. h3 {[%clk 0:02:50.2]} 12...
e5 {[%clk 0:02:49.2]} 13. Be3 {[%clk 0:02:42.5]} 13... b6 {[%clk 0:02:46]} 14.
Nh2 {[%clk 0:02:29]} 14... Nd7 {[%clk 0:02:43.1]} 15. f5 {[%clk 0:02:28.4]}
15... f6 {[%clk 0:02:39.1]} 16. g4 {[%clk 0:02:20.3]} 16... g5 {[%clk 0:02:38]}
17. Nf3 {[%clk 0:02:15.5]} 17... Kf7 {[%clk 0:02:37.4]} 18. Ng3 {[%clk
0:02:12.9]} 18... Ke7 {[%clk 0:02:32.5]} 19. Nh5 {[%clk 0:02:10.5]} 19... Rf7
{[%clk 0:02:31.7]} 20. Bxg5 {[%clk 0:02:00.5]} 20... fxg5 {[%clk 0:02:28.6]} 21.
Nxg5 {[%clk 0:02:01.4]} 21... Nf6 {[%clk 0:02:22.6]} 22. Nxf7 {[%clk 0:01:52]}
22... Kxf7 {[%clk 0:02:23.5]} 23. Nxg7 {[%clk 0:01:49.1]} 23... Kxg7 {[%clk
0:02:22.7]} 24. g5 {[%clk 0:01:49.4]} 24... Ng8 {[%clk 0:02:14.5]} 25. Qh5
{[%clk 0:01:45.9]} 25... Qe8 {[%clk 0:02:08.7]} 26. f6+ {[%clk 0:01:41.1]} 26...
Kh8 {[%clk 0:01:54]} 27. f7 {[%clk 0:01:40]} 27... Qe7 {[%clk 0:01:47.8]} 28. g6
{[%clk 0:01:27.5]} 28... h6 {[%clk 0:01:21.8]} 29. fxg8=Q+ {[%clk 0:01:23.7]}
29... Kxg8 {[%clk 0:01:20.5]} 30. Qxh6 {[%clk 0:01:20.7]} 30... Nd8 {[%clk
0:01:11]} 31. Rf7 {[%clk 0:00:46.5]} 31... Nxf7 {[%clk 0:01:03.2]} 32. Qh7+
{[%clk 0:00:46.5]} 32... Kf8 {[%clk 0:01:01.8]} 33. g7+ {[%clk 0:00:43.5]} 33...
Ke8 {[%clk 0:01:01.2]} 34. g8=Q+ {[%clk 0:00:43.7]} 34... Kd7 {[%clk 0:01:01.7]}
35. Qgxf7 {[%clk 0:00:43.1]} 1-0

[Event "*** Titled Tuesday Blitz"]
[Site "Chess.com"]
[Date "2020.12.29"]
[Round "5"]
[White "Gulkov_Igor"]
[Black "Skat2704"]
[Result "1-0"]
[WhiteElo "2546"]
[BlackElo "2371"]
[TimeControl "180+1"]
[EndTime "10:53:28 PST"]
[Termination "Gulkov_Igor won by resignation"]

1. Nf3 {[%clk 0:02:55.9]} 1... d5 {[%clk 0:02:59.4]} 2. d4 {[%clk 0:02:54.2]}
2... Nf6 {[%clk 0:02:58.9]} 3. c4 {[%clk 0:02:52.8]} 3... e6 {[%clk 0:02:58.4]}
4. Nc3 {[%clk 0:02:53]} 4... Bb4 {[%clk 0:02:56.4]} 5. Bg5 {[%clk 0:02:52.7]}
5... h6 {[%clk 0:02:53.1]} 6. Bxf6 {[%clk 0:02:52.1]} 6... Qxf6 {[%clk 0:02:53]}
7. e3 {[%clk 0:02:52.5]} 7... O-O {[%clk 0:02:51.7]} 8. Bd3 {[%clk 0:02:52.6]}
8... c5 {[%clk 0:02:51.4]} 9. cxd5 {[%clk 0:02:49.3]} 9... exd5 {[%clk
0:02:50.6]} 10. O-O {[%clk 0:02:48.9]} 10... Bxc3 {[%clk 0:02:47.9]} 11. bxc3
{[%clk 0:02:48.5]} 11... c4 {[%clk 0:02:42.9]} 12. Bc2 {[%clk 0:02:47.8]} 12...
Bf5 {[%clk 0:02:43]} 13. Bxf5 {[%clk 0:02:36.4]} 13... Qxf5 {[%clk 0:02:42.1]}
14. Qb1 {[%clk 0:02:37]} 14... Qxb1 {[%clk 0:02:32.8]} 15. Rfxb1 {[%clk
0:02:36.1]} 15... b6 {[%clk 0:02:31.6]} 16. a4 {[%clk 0:02:21.4]} 16... Nc6
{[%clk 0:02:26.8]} 17. Rb5 {[%clk 0:02:16.5]} 17... Rfd8 {[%clk 0:02:24.6]} 18.
Ne5 {[%clk 0:02:13.2]} 18... Na5 {[%clk 0:02:23.4]} 19. f3 {[%clk 0:02:06.1]}
19... f5 {[%clk 0:01:45.5]} 20. Kf2 {[%clk 0:01:57.4]} 20... Rd6 {[%clk
0:01:43.3]} 21. h4 {[%clk 0:01:55.7]} 21... Nb3 {[%clk 0:01:38.6]} 22. Rg1
{[%clk 0:01:41.5]} 22... a6 {[%clk 0:01:29.8]} 23. Rb4 {[%clk 0:01:40.4]} 23...
Rf8 {[%clk 0:01:14.6]} 24. g4 {[%clk 0:01:27.4]} 24... fxg4 {[%clk 0:01:13.4]}
25. Rxg4 {[%clk 0:01:24.5]} 25... Rff6 {[%clk 0:01:07.8]} 26. Ke2 {[%clk
0:01:15.6]} 26... Kh7 {[%clk 0:00:58]} 27. e4 {[%clk 0:01:10.6]} 27... dxe4
{[%clk 0:00:51.8]} 28. Rxe4 {[%clk 0:01:07.4]} 28... Nc1+ {[%clk 0:00:50.4]} 29.
Ke3 {[%clk 0:01:03.2]} 29... Nd3 {[%clk 0:00:40.8]} 30. Rxc4 {[%clk 0:00:59.7]}
30... Nf4 {[%clk 0:00:40.1]} 31. Rxf4 {[%clk 0:00:50.8]} 1-0

[Event "*** Titled Tuesday Blitz"]
[Site "Chess.com"]
[Date "2020.12.29"]
[Round "5"]
[White "olksuna"]
[Black "Makswolf200817"]
[Result "1-0"]
[WhiteElo "2637"]
[BlackElo "2425"]
[TimeControl "180+1"]
[EndTime "10:53:29 PST"]
[Termination "olksuna won by checkmate"]

1. e4 {[%clk 0:03:00.9]} 1... e6 {[%clk 0:02:01.7]} 2. b3 {[%clk 0:02:57.9]}
2... d5 {[%clk 0:02:01.2]} 3. Bb2 {[%clk 0:02:58.3]} 3... dxe4 {[%clk
0:01:59.3]} 4. Nc3 {[%clk 0:02:58.5]} 4... Nf6 {[%clk 0:01:57.8]} 5. Qe2 {[%clk
0:02:58.1]} 5... Be7 {[%clk 0:01:56.4]} 6. g4 {[%clk 0:02:56.8]} 6... h6 {[%clk
0:01:55.6]} 7. O-O-O {[%clk 0:02:52.1]} 7... b6 {[%clk 0:01:52.8]} 8. Bg2 {[%clk
0:02:47.9]} 8... Bb7 {[%clk 0:01:52.5]} 9. h4 {[%clk 0:02:48.3]} 9... Nd5 {[%clk
0:01:39.8]} 10. Bxe4 {[%clk 0:02:33.3]} 10... Nd7 {[%clk 0:01:25.2]} 11. Nxd5
{[%clk 0:01:58.3]} 11... exd5 {[%clk 0:01:23]} 12. Bd3 {[%clk 0:01:53.7]} 12...
Nf6 {[%clk 0:01:20.9]} 13. Bxf6 {[%clk 0:01:48.7]} 13... gxf6 {[%clk 0:01:19.1]}
14. Nf3 {[%clk 0:01:47]} 14... Qd6 {[%clk 0:01:05.6]} 15. Rhe1 {[%clk
0:01:40.3]} 15... Qb4 {[%clk 0:00:49.6]} 16. Nd4 {[%clk 0:01:32.6]} 16... O-O-O
{[%clk 0:00:44]} 17. Qxe7 {[%clk 0:01:15.8]} 17... Qxd4 {[%clk 0:00:43.1]} 18.
Kb1 {[%clk 0:01:11.8]} 18... Kb8 {[%clk 0:00:30.6]} 19. Bf5 {[%clk 0:01:09.7]}
19... Qxf2 {[%clk 0:00:29.1]} 20. Qxf6 {[%clk 0:01:07.3]} 20... d4 {[%clk
0:00:23]} 21. Re7 {[%clk 0:01:03.8]} 21... Bf3 {[%clk 0:00:17.3]} 22. Qe5 {[%clk
0:00:58.6]} 22... Rd6 {[%clk 0:00:15.1]} 23. Qxh8+ {[%clk 0:00:58.2]} 23... Kb7
{[%clk 0:00:12.7]} 24. Qc8+ {[%clk 0:00:56.8]} 24... Kc6 {[%clk 0:00:12.7]} 25.
Qxc7+ {[%clk 0:00:55]} 25... Kd5 {[%clk 0:00:12.5]} 26. Qc4# {[%clk 0:00:53.8]}
1-0

[Event "*** Titled Tuesday Blitz"]
[Site "Chess.com"]
[Date "2020.12.29"]
[Round "5"]
[White "vugarrasulov"]
[Black "chess94cu"]
[Result "1-0"]
[WhiteElo "2788"]
[BlackElo "2589"]
[TimeControl "180+1"]
[EndTime "10:53:30 PST"]
[Termination "vugarrasulov won on time"]

1. d4 {[%clk 0:03:00.9]} 1... Nf6 {[%clk 0:02:57.6]} 2. c4 {[%clk 0:03:01]} 2...
e6 {[%clk 0:02:54.3]} 3. Nf3 {[%clk 0:03:01.1]} 3... d5 {[%clk 0:02:53.5]} 4. g3
{[%clk 0:03:00.7]} 4... Be7 {[%clk 0:02:51.4]} 5. Bg2 {[%clk 0:03:00.9]} 5...
O-O {[%clk 0:02:51.3]} 6. O-O {[%clk 0:03:01.5]} 6... dxc4 {[%clk 0:02:51.9]} 7.
Qc2 {[%clk 0:03:01.3]} 7... a6 {[%clk 0:02:51.2]} 8. a4 {[%clk 0:03:01.1]} 8...
Bd7 {[%clk 0:02:50.8]} 9. Qxc4 {[%clk 0:03:00.9]} 9... Bc6 {[%clk 0:02:50.6]}
10. Bf4 {[%clk 0:02:59.4]} 10... a5 {[%clk 0:01:59.9]} 11. Nc3 {[%clk
0:02:50.8]} 11... Na6 {[%clk 0:01:53.6]} 12. Ne5 {[%clk 0:02:33]} 12... Bxg2
{[%clk 0:01:51.4]} 13. Kxg2 {[%clk 0:02:33.9]} 13... Nb4 {[%clk 0:01:46]} 14. e4
{[%clk 0:02:32.4]} 14... c6 {[%clk 0:01:44.5]} 15. Rad1 {[%clk 0:02:15.7]} 15...
Rc8 {[%clk 0:01:29.7]} 16. Qb3 {[%clk 0:02:12.8]} 16... Nd7 {[%clk 0:01:17.9]}
17. Nc4 {[%clk 0:02:10.4]} 17... Nf6 {[%clk 0:00:55.6]} 18. Rfe1 {[%clk
0:02:06.1]} 18... Nh5 {[%clk 0:00:36.5]} 19. Be3 {[%clk 0:02:03.1]} 19... Kh8
{[%clk 0:00:32.1]} 20. f3 {[%clk 0:01:59]} 20... Nf6 {[%clk 0:00:20.3]} 21. Rd2
{[%clk 0:01:54.8]} 21... Ra8 {[%clk 0:00:17]} 22. Red1 {[%clk 0:01:52.3]} 22...
Ne8 {[%clk 0:00:15.7]} 23. d5 {[%clk 0:01:46.3]} 23... exd5 {[%clk 0:00:15.4]}
24. exd5 {[%clk 0:01:47.2]} 24... cxd5 {[%clk 0:00:14.6]} 25. Nxd5 {[%clk
0:01:48.1]} 25... Nxd5 {[%clk 0:00:13.2]} 26. Rxd5 {[%clk 0:01:49]} 26... Qc8
{[%clk 0:00:13]} 27. Nb6 {[%clk 0:01:48]} 27... Qb8 {[%clk 0:00:09]} 28. Nxa8
{[%clk 0:01:46.2]} 28... Qxa8 {[%clk 0:00:09.9]} 29. Rd7 {[%clk 0:01:46.7]}
29... Bb4 {[%clk 0:00:10.2]} 30. Rxf7 {[%clk 0:01:46.6]} 30... Rg8 {[%clk
0:00:09.7]} 31. Qe6 {[%clk 0:01:30.7]} 31... Nf6 {[%clk 0:00:02.7]} 32. Rxf6
{[%clk 0:01:29.6]} 32... gxf6 {[%clk 0:00:02.7]} 33. Qxf6+ {[%clk 0:01:30.5]}
33... Rg7 {[%clk 0:00:03.3]} 34. Rd8+ {[%clk 0:01:29.8]} 1-0

[Event "*** Titled Tuesday Blitz"]
[Site "Chess.com"]
[Date "2020.12.29"]
[Round "5"]
[White "tsaruk_maks"]
[Black "Semen_Khanin"]
[Result "0-1"]
[WhiteElo "2593"]
[BlackElo "2800"]
[TimeControl "180+1"]
[EndTime "10:53:31 PST"]
[Termination "Semen_Khanin won by resignation"]

1. e4 {[%clk 0:03:00.9]} 1... e5 {[%clk 0:02:59.2]} 2. Nf3 {[%clk 0:03:00.5]}
2... Nc6 {[%clk 0:02:59.8]} 3. Bb5 {[%clk 0:03:00.5]} 3... a6 {[%clk 0:02:59.6]}
4. Ba4 {[%clk 0:03:01.1]} 4... b5 {[%clk 0:02:58]} 5. Bb3 {[%clk 0:03:00.3]}
5... g6 {[%clk 0:02:58.4]} 6. O-O {[%clk 0:02:55.5]} 6... Bg7 {[%clk 0:02:58.2]}
7. c3 {[%clk 0:02:55.2]} 7... Nge7 {[%clk 0:02:57.6]} 8. d4 {[%clk 0:02:55.2]}
8... exd4 {[%clk 0:02:57.7]} 9. cxd4 {[%clk 0:02:55.4]} 9... d6 {[%clk
0:02:57.3]} 10. h3 {[%clk 0:02:49.9]} 10... O-O {[%clk 0:02:57]} 11. Nc3 {[%clk
0:02:46.6]} 11... Bb7 {[%clk 0:02:56.2]} 12. Bf4 {[%clk 0:02:13]} 12... Na5
{[%clk 0:02:47.3]} 13. Bc2 {[%clk 0:02:13.1]} 13... c5 {[%clk 0:02:40.3]} 14. b3
{[%clk 0:01:32.6]} 14... Nac6 {[%clk 0:02:37.2]} 15. Ne2 {[%clk 0:01:22.7]}
15... Qb6 {[%clk 0:02:23.5]} 16. Bxd6 {[%clk 0:00:42.7]} 16... cxd4 {[%clk
0:02:21.6]} 17. b4 {[%clk 0:00:42.9]} 17... Rad8 {[%clk 0:02:03.2]} 18. Bc5
{[%clk 0:00:43]} 18... Qc7 {[%clk 0:02:03.4]} 19. Bd3 {[%clk 0:00:43.1]} 19...
a5 {[%clk 0:02:00.9]} 20. a3 {[%clk 0:00:41.8]} 20... Rfe8 {[%clk 0:01:54.9]}
21. Rc1 {[%clk 0:00:39.6]} 21... axb4 {[%clk 0:01:51.5]} 22. axb4 {[%clk
0:00:40.5]} 22... Ne5 {[%clk 0:01:36.6]} 23. Nxe5 {[%clk 0:00:33.3]} 23... Qxe5
{[%clk 0:01:36.4]} 24. Bxb5 {[%clk 0:00:33.8]} 24... Qxe4 {[%clk 0:01:35.2]} 25.
f3 {[%clk 0:00:25.6]} 25... Qe3+ {[%clk 0:01:35.5]} 26. Kh1 {[%clk 0:00:24.6]}
26... Nf5 {[%clk 0:01:33.8]} 27. Re1 {[%clk 0:00:09.6]} 27... Bxf3 {[%clk
0:01:29.2]} 28. Nxd4 {[%clk 0:00:03.8]} 28... Bxg2+ {[%clk 0:01:25.6]} 29. Kxg2
{[%clk 0:00:02.8]} 29... Qg3+ {[%clk 0:01:24.7]} 30. Kf1 {[%clk 0:00:02]} 30...
Qxh3+ {[%clk 0:01:24.3]} 31. Kf2 {[%clk 0:00:02]} 31... Qh2+ {[%clk 0:01:21.2]}
0-1

[Event "*** Titled Tuesday Blitz"]
[Site "Chess.com"]
[Date "2020.12.29"]
[Round "5"]
[White "Witik"]
[Black "AttilaTurzo"]
[Result "1-0"]
[WhiteElo "2719"]
[BlackElo "2493"]
[TimeControl "180+1"]
[EndTime "10:53:34 PST"]
[Termination "Witik won by resignation"]

1. d4 {[%clk 0:02:54]} 1... d5 {[%clk 0:02:59.5]} 2. Bf4 {[%clk 0:02:53.7]} 2...
c6 {[%clk 0:02:53.8]} 3. e3 {[%clk 0:02:53.4]} 3... Qb6 {[%clk 0:02:53.3]} 4.
Qc1 {[%clk 0:02:53.7]} 4... Bf5 {[%clk 0:02:04.9]} 5. c4 {[%clk 0:02:52.2]} 5...
e6 {[%clk 0:01:54.3]} 6. Nc3 {[%clk 0:02:51.8]} 6... Nf6 {[%clk 0:01:52.5]} 7.
Nf3 {[%clk 0:02:48.4]} 7... Be7 {[%clk 0:01:51.1]} 8. c5 {[%clk 0:02:35.3]} 8...
Qd8 {[%clk 0:01:45]} 9. Nh4 {[%clk 0:02:21.6]} 9... b6 {[%clk 0:01:44.1]} 10.
Nxf5 {[%clk 0:02:19.5]} 10... exf5 {[%clk 0:01:45]} 11. b4 {[%clk 0:02:14]}
11... a5 {[%clk 0:01:44.9]} 12. b5 {[%clk 0:01:42]} 12... bxc5 {[%clk 0:01:41]}
13. bxc6 {[%clk 0:01:41.4]} 13... Nxc6 {[%clk 0:01:32.4]} 14. Bb5 {[%clk
0:01:40.9]} 14... Rc8 {[%clk 0:01:29.1]} 15. dxc5 {[%clk 0:01:37.8]} 15... Bxc5
{[%clk 0:01:25.2]} 16. O-O {[%clk 0:01:31.9]} 16... O-O {[%clk 0:01:24.7]} 17.
Ba6 {[%clk 0:01:21.2]} 17... Nb4 {[%clk 0:01:08.4]} 18. Bxc8 {[%clk 0:01:20.4]}
18... Qxc8 {[%clk 0:01:09.3]} 19. Qd2 {[%clk 0:00:50.6]} 19... Rd8 {[%clk
0:01:02.8]} 20. Rac1 {[%clk 0:00:46.9]} 20... Qa6 {[%clk 0:01:02.7]} 21. Qe2
{[%clk 0:00:26.4]} 21... Qa7 {[%clk 0:00:54.1]} 22. Nb5 {[%clk 0:00:24.3]} 22...
Qb6 {[%clk 0:00:40.5]} 23. Bc7 {[%clk 0:00:23.8]} 1-0

[Event "*** Titled Tuesday Blitz"]
[Site "Chess.com"]
[Date "2020.12.29"]
[Round "5"]
[White "ChampStan"]
[Black "Fortitudine"]
[Result "1-0"]
[WhiteElo "2186"]
[BlackElo "2345"]
[TimeControl "180+1"]
[EndTime "10:53:39 PST"]
[Termination "ChampStan won by resignation"]

1. d4 {[%clk 0:02:59]} 1... Nf6 {[%clk 0:02:59.5]} 2. c4 {[%clk 0:02:57.4]} 2...
c5 {[%clk 0:02:59.6]} 3. d5 {[%clk 0:02:56.2]} 3... b5 {[%clk 0:02:59.7]} 4.
cxb5 {[%clk 0:02:55.4]} 4... a6 {[%clk 0:03:00.3]} 5. bxa6 {[%clk 0:02:54.7]}
5... g6 {[%clk 0:03:00.6]} 6. Nc3 {[%clk 0:02:54]} 6... Bg7 {[%clk 0:03:01.1]}
7. Nf3 {[%clk 0:02:53.3]} 7... O-O {[%clk 0:03:01.6]} 8. e4 {[%clk 0:02:52.4]}
8... d6 {[%clk 0:03:02.1]} 9. a4 {[%clk 0:02:51.6]} 9... Nxa6 {[%clk 0:03:02.1]}
10. Be2 {[%clk 0:02:47.9]} 10... Qa5 {[%clk 0:02:59.4]} 11. O-O {[%clk
0:02:46.8]} 11... Nc7 {[%clk 0:02:59.6]} 12. Bd2 {[%clk 0:02:44]} 12... Ba6
{[%clk 0:02:59]} 13. Qc2 {[%clk 0:01:49.4]} 13... Bxe2 {[%clk 0:02:50.4]} 14.
Nxe2 {[%clk 0:01:45.6]} 14... Qb6 {[%clk 0:02:40.6]} 15. Rfb1 {[%clk 0:01:40.2]}
15... Na6 {[%clk 0:02:39.9]} 16. Qc4 {[%clk 0:01:29.6]} 16... Rfb8 {[%clk
0:02:34.4]} 17. a5 {[%clk 0:01:15.1]} 17... Qb7 {[%clk 0:02:20.5]} 18. Ra4
{[%clk 0:01:13.5]} 18... Nb4 {[%clk 0:02:08]} 19. Bxb4 {[%clk 0:01:11.1]} 19...
cxb4 {[%clk 0:02:08.9]} 20. Ned4 {[%clk 0:01:03.1]} 20... Qa6 {[%clk 0:01:32.6]}
21. Qxa6 {[%clk 0:01:00.5]} 21... Rxa6 {[%clk 0:01:33.5]} 22. Nc6 {[%clk
0:00:59.7]} 22... Rb7 {[%clk 0:01:33.9]} 23. Nd2 {[%clk 0:00:57.4]} 23... Ne8
{[%clk 0:01:23.9]} 24. Nxb4 {[%clk 0:00:51.6]} 24... Ra8 {[%clk 0:01:23.6]} 25.
a6 {[%clk 0:00:47.8]} 25... Rb5 {[%clk 0:01:23.5]} 26. Nc6 {[%clk 0:00:46.4]}
26... Nc7 {[%clk 0:01:17.8]} 27. Nxe7+ {[%clk 0:00:42.8]} 27... Kf8 {[%clk
0:01:17.6]} 28. Nc6 {[%clk 0:00:40.3]} 28... Rxa6 {[%clk 0:01:17.6]} 29. Rxa6
{[%clk 0:00:39.2]} 29... Nxa6 {[%clk 0:01:18.5]} 30. Nc4 {[%clk 0:00:40]} 30...
Nc5 {[%clk 0:01:12.2]} 31. Nxd6 {[%clk 0:00:35.9]} 31... Rxb2 {[%clk 0:01:12.2]}
32. Rxb2 {[%clk 0:00:35.4]} 32... Bxb2 {[%clk 0:01:13.1]} 33. e5 {[%clk
0:00:34.1]} 33... Nd3 {[%clk 0:01:11.8]} 34. e6 {[%clk 0:00:33.2]} 34... fxe6
{[%clk 0:01:10]} 35. dxe6 {[%clk 0:00:33]} 35... Ba3 {[%clk 0:01:08.8]} 36. e7+
{[%clk 0:00:31.5]} 36... Kg7 {[%clk 0:01:05.3]} 37. e8=Q {[%clk 0:00:32.4]}
37... Bxd6 {[%clk 0:01:05]} 38. Qd7+ {[%clk 0:00:32.1]} 38... Kh6 {[%clk
0:01:04.9]} 1-0

[Event "*** Titled Tuesday Blitz"]
[Site "Chess.com"]
[Date "2020.12.29"]
[Round "5"]
[White "Gabrielian_Artur"]
[Black "Storne89"]
[Result "0-1"]
[WhiteElo "2778"]
[BlackElo "2616"]
[TimeControl "180+1"]
[EndTime "10:53:40 PST"]
[Termination "Storne89 won by resignation"]

1. e4 {[%clk 0:03:00.9]} 1... e5 {[%clk 0:02:56]} 2. Nc3 {[%clk 0:03:00.3]} 2...
Nf6 {[%clk 0:02:55.5]} 3. g3 {[%clk 0:03:00.2]} 3... d5 {[%clk 0:02:54.9]} 4.
exd5 {[%clk 0:03:00.3]} 4... Nxd5 {[%clk 0:02:55.8]} 5. Bg2 {[%clk 0:03:00.8]}
5... Nxc3 {[%clk 0:02:56.4]} 6. bxc3 {[%clk 0:03:01.4]} 6... Nc6 {[%clk
0:02:57]} 7. Nf3 {[%clk 0:03:01.5]} 7... Bc5 {[%clk 0:02:55.1]} 8. O-O {[%clk
0:03:01.2]} 8... O-O {[%clk 0:02:55.2]} 9. Re1 {[%clk 0:03:01.5]} 9... Bg4
{[%clk 0:02:39.3]} 10. h3 {[%clk 0:03:01.3]} 10... Bh5 {[%clk 0:02:39.2]} 11. g4
{[%clk 0:03:01.6]} 11... Bg6 {[%clk 0:02:38.8]} 12. Nxe5 {[%clk 0:03:01.9]}
12... Nxe5 {[%clk 0:02:35.8]} 13. Rxe5 {[%clk 0:03:02.8]} 13... Bd6 {[%clk
0:02:34.1]} 14. Re1 {[%clk 0:03:00.5]} 14... f5 {[%clk 0:02:34.3]} 15. d4 {[%clk
0:02:53.4]} 15... Qh4 {[%clk 0:02:28.6]} 16. g5 {[%clk 0:02:44.8]} 16... Bh5
{[%clk 0:02:24.5]} 17. Qd3 {[%clk 0:02:39.2]} 17... f4 {[%clk 0:02:20.2]} 18.
Bf3 {[%clk 0:01:58.2]} 18... Bg6 {[%clk 0:01:59]} 19. Qf1 {[%clk 0:01:49.5]}
19... Bf5 {[%clk 0:01:55.8]} 20. Kh2 {[%clk 0:01:38.9]} 20... Bxh3 {[%clk
0:01:46.7]} 21. Qxh3 {[%clk 0:01:31]} 21... Qxf2+ {[%clk 0:01:46.6]} 22. Qg2
{[%clk 0:01:25]} 22... Qxe1 {[%clk 0:01:45.9]} 23. Bb2 {[%clk 0:00:53.3]} 23...
Qg3+ {[%clk 0:01:41.5]} 24. Qxg3 {[%clk 0:00:50.4]} 24... fxg3+ {[%clk
0:01:42.4]} 25. Kg2 {[%clk 0:00:51]} 25... c6 {[%clk 0:01:38.7]} 26. c4 {[%clk
0:00:49.4]} 26... Rae8 {[%clk 0:01:37.9]} 27. c5 {[%clk 0:00:44.7]} 27... Bc7
{[%clk 0:01:33.3]} 28. d5 {[%clk 0:00:43.6]} 28... cxd5 {[%clk 0:01:33]} 29.
Bxd5+ {[%clk 0:00:43.6]} 29... Kh8 {[%clk 0:01:33.6]} 30. Bf3 {[%clk 0:00:42.2]}
30... Be5 {[%clk 0:01:33.4]} 31. Rb1 {[%clk 0:00:37.9]} 31... Bxb2 {[%clk
0:01:28.2]} 32. Rxb2 {[%clk 0:00:38.8]} 32... Re3 {[%clk 0:01:28.5]} 33. Rb3
{[%clk 0:00:37.3]} 33... Rfxf3 {[%clk 0:01:25]} 34. c6 {[%clk 0:00:35.5]} 34...
Rxb3 {[%clk 0:01:11.7]} 35. axb3 {[%clk 0:00:27.1]} 35... Rf8 {[%clk 0:01:01.6]}
36. cxb7 {[%clk 0:00:25.4]} 36... Rb8 {[%clk 0:01:01]} 37. Kxg3 {[%clk
0:00:25.3]} 37... Rxb7 {[%clk 0:01:01.3]} 0-1

[Event "*** Titled Tuesday Blitz"]
[Site "Chess.com"]
[Date "2020.12.29"]
[Round "5"]
[White "Sharpchess22"]
[Black "stanyga"]
[Result "1-0"]
[WhiteElo "2805"]
[BlackElo "2600"]
[TimeControl "180+1"]
[EndTime "10:53:43 PST"]
[Termination "Sharpchess22 won by resignation"]

1. c4 {[%clk 0:03:00.5]} 1... c6 {[%clk 0:02:56.2]} 2. Nf3 {[%clk 0:02:59.8]}
2... Nf6 {[%clk 0:02:55.5]} 3. e3 {[%clk 0:02:59.1]} 3... d5 {[%clk 0:02:54.6]}
4. Nc3 {[%clk 0:02:58.7]} 4... e6 {[%clk 0:02:52.9]} 5. b3 {[%clk 0:02:55.8]}
5... Nbd7 {[%clk 0:02:49.2]} 6. Bb2 {[%clk 0:02:55.3]} 6... Bd6 {[%clk 0:02:46]}
7. Qc2 {[%clk 0:02:54.9]} 7... b6 {[%clk 0:02:39.4]} 8. cxd5 {[%clk 0:02:50.4]}
8... exd5 {[%clk 0:02:27.7]} 9. Nd4 {[%clk 0:02:50]} 9... Bb7 {[%clk 0:02:25.7]}
10. Nf5 {[%clk 0:02:47.4]} 10... Bf8 {[%clk 0:02:24.6]} 11. d4 {[%clk
0:02:42.1]} 11... g6 {[%clk 0:02:22.6]} 12. Ng3 {[%clk 0:02:41.8]} 12... Bd6
{[%clk 0:02:10.2]} 13. Bd3 {[%clk 0:02:41.6]} 13... Rc8 {[%clk 0:01:33.5]} 14.
O-O {[%clk 0:02:37.1]} 14... O-O {[%clk 0:01:32.5]} 15. Rad1 {[%clk 0:02:33.8]}
15... Re8 {[%clk 0:01:23.8]} 16. e4 {[%clk 0:02:19.6]} 16... c5 {[%clk
0:01:10.2]} 17. dxc5 {[%clk 0:02:12.3]} 17... Nxc5 {[%clk 0:00:41]} 18. Bb5
{[%clk 0:02:09.7]} 18... Ncxe4 {[%clk 0:00:35.4]} 19. Bxe8 {[%clk 0:02:07]}
19... Qxe8 {[%clk 0:00:35.5]} 20. Ncxe4 {[%clk 0:01:47.7]} 20... Nxe4 {[%clk
0:00:32.3]} 21. Qd3 {[%clk 0:01:44.3]} 21... Be5 {[%clk 0:00:28.9]} 22. Bxe5
{[%clk 0:01:41.2]} 22... Qxe5 {[%clk 0:00:29.6]} 23. Rc1 {[%clk 0:01:39.2]}
23... Rxc1 {[%clk 0:00:28]} 24. Rxc1 {[%clk 0:01:38.3]} 24... Qb2 {[%clk
0:00:25.4]} 25. Qc2 {[%clk 0:01:35.6]} 25... Qd4 {[%clk 0:00:23.8]} 26. Rd1
{[%clk 0:01:31]} 26... Qe5 {[%clk 0:00:21.6]} 27. Nxe4 {[%clk 0:01:25.4]} 27...
dxe4 {[%clk 0:00:20]} 28. Qd2 {[%clk 0:01:25.4]} 28... h5 {[%clk 0:00:13]} 29.
Qd8+ {[%clk 0:01:23.1]} 29... Kg7 {[%clk 0:00:13.1]} 30. Qd7 {[%clk 0:01:23.1]}
30... Ba6 {[%clk 0:00:07.9]} 31. Qd4 {[%clk 0:01:22.1]} 31... Qxd4 {[%clk
0:00:05.2]} 32. Rxd4 {[%clk 0:01:21.2]} 32... Bd3 {[%clk 0:00:06.1]} 33. f3
{[%clk 0:01:18.5]} 33... f5 {[%clk 0:00:03]} 34. fxe4 {[%clk 0:01:18.3]} 34...
Kf6 {[%clk 0:00:03.9]} 35. Rxd3 {[%clk 0:01:17.4]} 35... fxe4 {[%clk 0:00:04.8]}
36. Rd7 {[%clk 0:01:17]} 1-0